Workbook

Sheet Input Demand
A1: Demand Charateristics
A2: Parameter | B2: Input Data (full time period) | C2: Input Data (single day) | D2: Input to Model (single day, correction) | E2: Unit
A3: No of days | B3: 22 | C3: 1 | D3: 1
A4: Total Distance | B4: =ROUND((D9/100)*B5,0)*Constraints!B26+ROUND((D10/100)*B5,0)*Constraints!C26+ROUND((D11/100)*B5,0)*Constraints!D26 -> 17523.0 | C4: =B4/B3 -> 796.5 | D4: =Constraints!B28*Constraints!B26+Constraints!C28*Constraints!C26+Constraints!D28*Constraints!D26 -> 807.0 | E4: km
A5: No of Missions | B5: 847 | C5: =B5/B3 -> 39 | D5: =ROUND(D9/100*C5,0)+ROUND(D10/100*C5,0)+ROUND(D11/100*C5,0) -> 38
A6: No of Passengers | B6: 900 | D6: =ROUNDUP(B6/B3,0) -> 41
A7: Concurrency | B7: 34 | D7: =B7 -> 34 | E7: %
A8: Min number of vehicles | D8: 0
A9: Short Trips | D9: 50 | E9: %
A10: Middle Trips | D10: 35 | E10: %
A11: Long Trips | D11: =100-D9-D10 -> 15 | E11: %

Sheet Input Cost
A1: Fixed Cost per Vehicle
A3: Currency | B3: Euro
A5: Vehicle Type | B5: Value | C5: Unit | D5: Value | E5: Unit
A6: =A21 -> Self-Drive | D6: =SUM(D11:D15)-D13 -> 11.51 | E6: =CONCATENATE($B$3,"/day") -> Euro/day
A7: =A22 -> Core-Drive | D7: =SUM(D11:D15) -> 59.03 | E7: =CONCATENATE($B$3,"/day") -> Euro/day
A8: =A23 -> Outsourced (external driver) | D8: 40.00 | E8: Euro/day
A9: =A24 -> Vehicle rental (own driver) | D9: 20.00 | E9: Euro/day
A11: Asset | B11: 1998.17 | C11: =CONCATENATE($B$3,"/year") -> Euro/year | D11: =B11/250 -> 7.99 | E11: =CONCATENATE($B$3,"/day") -> Euro/day
A12: Technology | B12: 135.74 | C12: =CONCATENATE($B$3,"/year") -> Euro/year | D12: =B12/250 -> 0.54 | E12: =CONCATENATE($B$3,"/day") -> Euro/day
A13: Labour (core drive) | B13: 11880.00 | C13: Euro/year | D13: =B13/250 -> 47.52 | E13: Euro/day
A14: Insurance | B14: 680.00 | C14: Euro/year | D14: =B14/250 -> 2.72 | E14: Euro/day
A15: Other | B15: 63.18 | C15: Euro/year | D15: =B15/250 -> 0.25 | E15: Euro/day
A19: Variable Costs per Vehicle
A20: Transporation Mode | B20: Value | C20: Unit
A21: Self-Drive | B21: 0.12 | C21: =CONCATENATE($B$3,"/km") -> Euro/km
A22: Core-Drive | B22: 0.12 | C22: =CONCATENATE($B$3,"/km") -> Euro/km
A23: Outsourced (external driver) | B23: 0 | C23: Euro/km
A24: Vehicle rental (own driver) | B24: 0.05 | C24: Euro/km
A25: Taxi | B25: 0.6 | C25: Euro/km | D25: 1.5 | E25: =CONCATENATE($B$3," for Call-out and first") -> Euro for Call-out and first | F25: 1.5 | G25: km free and | H25: 15 | I25: % off

Sheet Constraints
A1: Max. Utilization per Vehicle per day
B2: ='Input Cost'!A21 -> Self-Drive | C2: ='Input Cost'!A22 -> Core-Drive | D2: ='Input Cost'!A23 -> Outsourced (external driver) | E2: ='Input Cost'!A24 -> Vehicle rental (own driver) | F2: Unit | G2: ='Input Cost'!A25 -> Taxi
A3: Distance travelled | B3: 120 | C3: 120 | D3: 120 | E3: 120 | F3: km/day | G3: - | H3: per trip
A4: Max. possible missions | B4: 5 | C4: 5 | D4: 5 | E4: 5 | F4: missions per day | G4: - | H4: per trip | I4: Missions per vehicle per day not part of the optimization (just for the plots)
A5: No of Passengers per trip | B5: 4 | C5: 3 | D5: 3 | E5: 3 | F5: per trip | G5: 3 | H5: per trip
A6: Effective time (time budget) | B6: 8 | C6: 8 | D6: 8 | E6: 8 | F6: hours per day
A11: Trip duration | B11: short trip | C11: middle trip | D11: long trip
A12: ='Input Cost'!A21 -> Self-Drive | B12: 3 | C12: 4 | D12: 8
A13: ='Input Cost'!A22 -> Core-Drive | B13: 1.5 | C13: 2 | D13: 8
A14: ='Input Cost'!A23 -> Outsourced (external driver) | B14: 1.5 | C14: 2 | D14: 8
A15: ='Input Cost'!A24 -> Vehicle rental (own driver) | B15: 1.5 | C15: 2 | D15: 8
A16: ='Input Cost'!A25 -> Taxi | B16: not relevant to the model
A18: Distance factor | B18: short trip | C18: middle trip | D18: long trip
A19: ='Input Cost'!A21 -> Self-Drive | B19: 2 | C19: 2 | D19: 2
A20: ='Input Cost'!A22 -> Core-Drive | B20: 4 | C20: 3 | D20: 2
A21: ='Input Cost'!A23 -> Outsourced (external driver) | B21: 4 | C21: 3 | D21: 2
A22: ='Input Cost'!A24 -> Vehicle rental (own driver) | B22: 4 | C22: 3 | D22: 2
A23: ='Input Cost'!A25 -> Taxi | B23: 2 | C23: 2 | D23: 2
A25: Trips | B25: short | C25: middle | D25: long
A26: Avg. distance single leg [km] | B26: 4 | C26: 17 | D26: 85
A27: Bounds [km] | B27: [0-10] | C27: [10-40] | D27: [40…] | E27: only additional information (not for the model)
A28: No. missions | B28: =ROUND('Input Demand'!D9/100*'Input Demand'!D5,0) -> 19 | C28: =ROUND('Input Demand'!D10/100*'Input Demand'!D5,0) -> 13 | D28: =ROUND('Input Demand'!D11/100*'Input Demand'!D5,0) -> 6

Sheet Solver
B2: Excel Solver Sheet
A4: Total Cost (per day) | B4: =B5+B10 -> 404.69 | C4: ='[1]Input Cost'!$B$3 -> Dollar
A5: Fix Costs (per day) | B5: =SUM(B6:B9) -> 226.59 | C5: ='[1]Input Cost'!$B$3 -> Dollar
A6: ='Input Cost'!A21 -> Self-Drive | B6: =B18*'Input Cost'!D6 -> 126.59 | C6: ='[1]Input Cost'!$B$3 -> Dollar
A7: ='Input Cost'!A22 -> Core-Drive | B7: =B19*'Input Cost'!D7 -> 0.00 | C7: ='[1]Input Cost'!$B$3 -> Dollar
A8: ='Input Cost'!A23 -> Outsourced (external driver) | B8: =B20*'Input Cost'!D8 -> 0.00 | C8: ='[1]Input Cost'!$B$3 -> Dollar
A9: ='Input Cost'!A24 -> Vehicle rental (own driver) | B9: =B21*'Input Cost'!D9 -> 100.00 | C9: ='[1]Input Cost'!$B$3 -> Dollar
A10: Variable Costs (per day) | B10: =SUM(B11:B15) -> 178.10 | C10: ='[1]Input Cost'!$B$3 -> Dollar
A11: ='Input Cost'!A21 -> Self-Drive | B11: =E24*'Input Cost'!B21 -> 143.76 | C11: ='[1]Input Cost'!$B$3 -> Dollar
A12: ='Input Cost'!A22 -> Core-Drive | B12: =E25*'Input Cost'!B22 -> 0.00 | C12: ='[1]Input Cost'!$B$3 -> Dollar
A13: ='Input Cost'!A23 -> Outsourced (external driver) | B13: =E26*'Input Cost'!B23 -> 0.00 | C13: ='[1]Input Cost'!$B$3 -> Dollar
A14: ='Input Cost'!A24 -> Vehicle rental (own driver) | B14: =E27*'Input Cost'!B24 -> 29.75 | C14: ='[1]Input Cost'!$B$3 -> Dollar
A15: ='Input Cost'!A25 -> Taxi | B15: =((E28-'Input Cost'!F25*SUM(B28:D28))*'Input Cost'!B25+SUM(B28:D28)*'Input Cost'!D25)*(1-'Input Cost'!H25/100) -> 4.59 | C15: ='[1]Input Cost'!$B$3 -> Dollar
A17: Fleet Composition
A18: ='Input Cost'!A21 -> Self-Drive | B18: 11 | C18: vehicles
A19: ='Input Cost'!A22 -> Core-Drive | B19: 0 | C19: vehicles
A20: ='Input Cost'!A23 -> Outsourced (external driver) | B20: 0 | C20: vehicles
A21: ='Input Cost'!A24 -> Vehicle rental (own driver) | B21: 5 | C21: vehicles
A22: Taxi Trips | B22: =SUM(B28:D28) -> 1 | C22: trips
A23: Operational Mix (per day) | B23: short missions | C23: middle missions | D23: long missions | E23: total km | F23: no_missions | G23: no_vehicles | H23: max.
A24: ='Input Cost'!A21 -> Self-Drive | B24: 1 | C24: 10 | D24: 5 | E24: =SUMPRODUCT(B24:D24,DistanceFactorSelfDrive,DistancesTripTypes) -> 1198.00 | F24: =SUM(B24:D24) -> 16 | G24: =B18 -> 11 | H24: =MAX(F24:G24) -> 16
A25: ='Input Cost'!A22 -> Core-Drive | B25: 0 | C25: 0 | D25: 0 | E25: =SUMPRODUCT(B25:D25,DistanceFactorCoreDrive,DistancesTripTypes) -> 0.00 | F25: =SUM(B25:D25) -> 0 | G25: =B19 -> 0 | H25: =MAX(F25:G25) -> 0
A26: ='Input Cost'!A23 -> Outsourced (external driver) | B26: 0 | C26: 0 | D26: 0 | E26: =SUMPRODUCT(B26:D26,DistanceFactorOutsourced,DistancesTripTypes) -> 0.00 | F26: =SUM(B26:D26) -> 0 | G26: =B20 -> 0 | H26: =MAX(F26:G26) -> 0
A27: ='Input Cost'!A24 -> Vehicle rental (own driver) | B27: 17 | C27: 3 | D27: 1 | E27: =SUMPRODUCT(B27:D27,DistanceFactorType5,DistancesTripTypes) -> 595.00 | F27: 21 | G27: =B21 -> 5 | H27: =MAX(F27:G27) -> 21
A28: ='Input Cost'!A25 -> Taxi | B28: 1 | C28: 0 | D28: 0 | E28: =SUMPRODUCT(B28:D28,DistanceFactorTaxi,DistancesTripTypes) -> 8.00
C29: total no. of missions: | D29: =SUM(B24:D28) -> 38
A30: Constraints | B30: Max. possible with current solution | D30: required
A31: Missions covered short | B31: =SUM(B24:B28) -> 19 | C31: = | D31: =Constraints!B28 -> 19
A32: Missions covered middle | B32: =SUM(C24:C28) -> 13 | C32: = | D32: =Constraints!C28 -> 13
A33: Missions covered long | B33: =SUM(D24:D28) -> 6 | C33: = | D33: =Constraints!D28 -> 6
A34: No concurrent trips | B34: =SUM(B18:B21)+SUM(B28:D28) -> 17 | C34: >= | D34: =ROUNDUP('Input Demand'!D7/100*'Input Demand'!D5,0) -> 13
A35: Min number of vehicles (safety constraint) | B35: =SUM(B18:B19) -> 11 | C35: >= | D35: ='Input Demand'!D8 -> 0
A36: ='Input Cost'!A21 -> Self-Drive | B36: =B18*Constraints!B3 -> 1320.00 | C36: >= | D36: =E24 -> 1198.00 | E36: Distance Constraints
A37: ='Input Cost'!A22 -> Core-Drive | B37: =B19*Constraints!C3 -> 0.00 | C37: >= | D37: =E25 -> 0.00
A38: ='Input Cost'!A23 -> Outsourced (external driver) | B38: =B20*Constraints!D3 -> 0.00 | C38: >= | D38: =E26 -> 0.00
A39: ='Input Cost'!A24 -> Vehicle rental (own driver) | B39: =B21*Constraints!E3 -> 600.00 | C39: >= | D39: =E27 -> 595.00
A40: ='Input Cost'!A21 -> Self-Drive | B40: =B18*Constraints!B6 -> 88.00 | C40: >= | D40: =SUMPRODUCT(B24:D24,Constraints!B12:D12) -> 83.00 | E40: Time Constraints
A41: ='Input Cost'!A22 -> Core-Drive | B41: =B19*Constraints!C6 -> 0.00 | C41: >= | D41: =SUMPRODUCT(B25:D25,Constraints!B13:D13) -> 0.00
A42: ='Input Cost'!A23 -> Outsourced (external driver) | B42: =B20*Constraints!D6 -> 0.00 | C42: >= | D42: =SUMPRODUCT(B26:D26,Constraints!B14:D14) -> 0.00
A43: ='Input Cost'!A24 -> Vehicle rental (own driver) | B43: =B21*Constraints!E6 -> 40.00 | C43: >= | D43: =SUMPRODUCT(B27:D27,Constraints!B15:D15) -> 39.50

Sheet Dashboard
B2: Summary: Fleet Size and Composition
C5: Cost per km single trip | E5: Cost per km | K5: Cost per km single trip | M5: Cost per km
C6: Utilization | D6: km | E6: ='Input Cost'!A21 -> Self-Drive | F6: ='Input Cost'!A22 -> Core-Drive | G6: ='Input Cost'!A23 -> Outsourced (external driver) | H6: ='Input Cost'!A24 -> Vehicle rental (own driver) | I6: ='Input Cost'!A25 -> Taxi | K6: Utilization | L6: km | M6: =E6 -> Self-Drive | N6: =F6 -> Core-Drive | O6: =G6 -> Outsourced (external driver) | P6: =H6 -> Vehicle rental (own driver) | Q6: =I6 -> Taxi
C7: 0.01 | D7: =Constraints!$C$3*C7 -> 1.2 | E7: =('Input Cost'!$D$6+'Input Cost'!$B$21*D7)/D7 -> 9.71 | F7: =('Input Cost'!$D$7+'Input Cost'!$B$22*D7)/D7 -> 49.31 | G7: =('Input Cost'!$D$8+'Input Cost'!$B$23*D7)/D7 -> 33.33 | H7: =('Input Cost'!$D$9+'Input Cost'!$B$24*D7)/D7 -> 16.72 | I7: =IF(D7<'Input Cost'!F25,'Input Cost'!D25,((('Input Cost'!$B$25*(D7-'Input Cost'!F25)+'Input Cost'!$D$25)/D7)))*(1-'Input Cost'!$H$25/100) -> 1.28 | K7: 0.01 | L7: =Constraints!$C$3*K7 -> 1.2 | M7: =('Input Cost'!$D$6/Constraints!$B$4+'Input Cost'!$B$21*L7)/L7 -> 2.04 | N7: =('Input Cost'!$D$7/Constraints!$C$4+'Input Cost'!$B$22*L7)/L7 -> 9.96 | O7: =('Input Cost'!$D$8/Constraints!$D$4+'Input Cost'!$B$23*L7)/L7 -> 6.67 | P7: =('Input Cost'!$D$9/Constraints!$E$4+'Input Cost'!$B$24*L7)/L7 -> 3.38 | Q7: =IF(L7<'Input Cost'!F25,'Input Cost'!D25,((('Input Cost'!$B$25*(L7-'Input Cost'!F25)+'Input Cost'!$D$25)/L7)))*(1-'Input Cost'!$H$25/100) -> 1.28
C8: 0.02 | D8: =Constraints!$C$3*C8 -> 2.4 | E8: =('Input Cost'!$D$6+'Input Cost'!$B$21*D8)/D8 -> 4.92 | F8: =('Input Cost'!$D$7+'Input Cost'!$B$22*D8)/D8 -> 24.72 | G8: =('Input Cost'!$D$8+'Input Cost'!$B$23*D8)/D8 -> 16.67 | H8: =('Input Cost'!$D$9+'Input Cost'!$B$24*D8)/D8 -> 8.38 | I8: =IF(D8<'Input Cost'!F26,'Input Cost'!D26,((('Input Cost'!$B$25*(D8-'Input Cost'!F26)+'Input Cost'!$D$25)/D8)))*(1-'Input Cost'!$H$25/100) -> 1.04 | K8: 0.02 | L8: =Constraints!$C$3*K8 -> 2.4 | M8: =('Input Cost'!$D$6/Constraints!$B$4+'Input Cost'!$B$21*L8)/L8 -> 1.08 | N8: =('Input Cost'!$D$7/Constraints!$C$4+'Input Cost'!$B$22*L8)/L8 -> 5.04 | O8: =('Input Cost'!$D$8/Constraints!$D$4+'Input Cost'!$B$23*L8)/L8 -> 3.33 | P8: =('Input Cost'!$D$9/Constraints!$E$4+'Input Cost'!$B$24*L8)/L8 -> 1.72 | Q8: =IF(L8<'Input Cost'!F26,'Input Cost'!D26,((('Input Cost'!$B$25*(L8-'Input Cost'!F26)+'Input Cost'!$D$25)/L8)))*(1-'Input Cost'!$H$25/100) -> 1.04
C9: 0.05 | D9: =Constraints!$C$3*C9 -> 6 | E9: =('Input Cost'!$D$6+'Input Cost'!$B$21*D9)/D9 -> 2.04 | F9: =('Input Cost'!$D$7+'Input Cost'!$B$22*D9)/D9 -> 9.96 | G9: =('Input Cost'!$D$8+'Input Cost'!$B$23*D9)/D9 -> 6.67 | H9: =('Input Cost'!$D$9+'Input Cost'!$B$24*D9)/D9 -> 3.38 | I9: =IF(D9<'Input Cost'!F27,'Input Cost'!D27,((('Input Cost'!$B$25*(D9-'Input Cost'!F27)+'Input Cost'!$D$25)/D9)))*(1-'Input Cost'!$H$25/100) -> 0.72 | K9: 0.05 | L9: =Constraints!$C$3*K9 -> 6 | M9: =('Input Cost'!$D$6/Constraints!$B$4+'Input Cost'!$B$21*L9)/L9 -> 0.50 | N9: =('Input Cost'!$D$7/Constraints!$C$4+'Input Cost'!$B$22*L9)/L9 -> 2.09 | O9: =('Input Cost'!$D$8/Constraints!$D$4+'Input Cost'!$B$23*L9)/L9 -> 1.33 | P9: =('Input Cost'!$D$9/Constraints!$E$4+'Input Cost'!$B$24*L9)/L9 -> 0.72 | Q9: =IF(L9<'Input Cost'!F27,'Input Cost'!D27,((('Input Cost'!$B$25*(L9-'Input Cost'!F27)+'Input Cost'!$D$25)/L9)))*(1-'Input Cost'!$H$25/100) -> 0.72
C10: 0.1 | D10: =Constraints!$C$3*C10 -> 12 | E10: =('Input Cost'!$D$6+'Input Cost'!$B$21*D10)/D10 -> 1.08 | F10: =('Input Cost'!$D$7+'Input Cost'!$B$22*D10)/D10 -> 5.04 | G10: =('Input Cost'!$D$8+'Input Cost'!$B$23*D10)/D10 -> 3.33 | H10: =('Input Cost'!$D$9+'Input Cost'!$B$24*D10)/D10 -> 1.72 | I10: =IF(D10<'Input Cost'!F28,'Input Cost'!D28,((('Input Cost'!$B$25*(D10-'Input Cost'!F28)+'Input Cost'!$D$25)/D10)))*(1-'Input Cost'!$H$25/100) -> 0.62 | K10: 0.1 | L10: =Constraints!$C$3*K10 -> 12 | M10: =('Input Cost'!$D$6/Constraints!$B$4+'Input Cost'!$B$21*L10)/L10 -> 0.31 | N10: =('Input Cost'!$D$7/Constraints!$C$4+'Input Cost'!$B$22*L10)/L10 -> 1.10 | O10: =('Input Cost'!$D$8/Constraints!$D$4+'Input Cost'!$B$23*L10)/L10 -> 0.67 | P10: =('Input Cost'!$D$9/Constraints!$E$4+'Input Cost'!$B$24*L10)/L10 -> 0.38 | Q10: =IF(L10<'Input Cost'!F28,'Input Cost'!D28,((('Input Cost'!$B$25*(L10-'Input Cost'!F28)+'Input Cost'!$D$25)/L10)))*(1-'Input Cost'!$H$25/100) -> 0.62
A11: Cost Analysis | C11: 0.2 | D11: =Constraints!$C$3*C11 -> 24 | E11: =('Input Cost'!$D$6+'Input Cost'!$B$21*D11)/D11 -> 0.60 | F11: =('Input Cost'!$D$7+'Input Cost'!$B$22*D11)/D11 -> 2.58 | G11: =('Input Cost'!$D$8+'Input Cost'!$B$23*D11)/D11 -> 1.67 | H11: =('Input Cost'!$D$9+'Input Cost'!$B$24*D11)/D11 -> 0.88 | I11: =IF(D11<'Input Cost'!F29,'Input Cost'!D29,((('Input Cost'!$B$25*(D11-'Input Cost'!F29)+'Input Cost'!$D$25)/D11)))*(1-'Input Cost'!$H$25/100) -> 0.56 | K11: 0.2 | L11: =Constraints!$C$3*K11 -> 24 | M11: =('Input Cost'!$D$6/Constraints!$B$4+'Input Cost'!$B$21*L11)/L11 -> 0.22 | N11: =('Input Cost'!$D$7/Constraints!$C$4+'Input Cost'!$B$22*L11)/L11 -> 0.61 | O11: =('Input Cost'!$D$8/Constraints!$D$4+'Input Cost'!$B$23*L11)/L11 -> 0.33 | P11: =('Input Cost'!$D$9/Constraints!$E$4+'Input Cost'!$B$24*L11)/L11 -> 0.22 | Q11: =IF(L11<'Input Cost'!F29,'Input Cost'!D29,((('Input Cost'!$B$25*(L11-'Input Cost'!F29)+'Input Cost'!$D$25)/L11)))*(1-'Input Cost'!$H$25/100) -> 0.56
C12: 0.3 | D12: =Constraints!$C$3*C12 -> 36 | E12: =('Input Cost'!$D$6+'Input Cost'!$B$21*D12)/D12 -> 0.44 | F12: =('Input Cost'!$D$7+'Input Cost'!$B$22*D12)/D12 -> 1.76 | G12: =('Input Cost'!$D$8+'Input Cost'!$B$23*D12)/D12 -> 1.11 | H12: =('Input Cost'!$D$9+'Input Cost'!$B$24*D12)/D12 -> 0.61 | I12: =IF(D12<'Input Cost'!F30,'Input Cost'!D30,((('Input Cost'!$B$25*(D12-'Input Cost'!F30)+'Input Cost'!$D$25)/D12)))*(1-'Input Cost'!$H$25/100) -> 0.55 | K12: 0.3 | L12: =Constraints!$C$3*K12 -> 36 | M12: =('Input Cost'!$D$6/Constraints!$B$4+'Input Cost'!$B$21*L12)/L12 -> 0.18 | N12: =('Input Cost'!$D$7/Constraints!$C$4+'Input Cost'!$B$22*L12)/L12 -> 0.45 | O12: =('Input Cost'!$D$8/Constraints!$D$4+'Input Cost'!$B$23*L12)/L12 -> 0.22 | P12: =('Input Cost'!$D$9/Constraints!$E$4+'Input Cost'!$B$24*L12)/L12 -> 0.16 | Q12: =IF(L12<'Input Cost'!F30,'Input Cost'!D30,((('Input Cost'!$B$25*(L12-'Input Cost'!F30)+'Input Cost'!$D$25)/L12)))*(1-'Input Cost'!$H$25/100) -> 0.55
C13: 0.4 | D13: =Constraints!$C$3*C13 -> 48 | E13: =('Input Cost'!$D$6+'Input Cost'!$B$21*D13)/D13 -> 0.36 | F13: =('Input Cost'!$D$7+'Input Cost'!$B$22*D13)/D13 -> 1.35 | G13: =('Input Cost'!$D$8+'Input Cost'!$B$23*D13)/D13 -> 0.83 | H13: =('Input Cost'!$D$9+'Input Cost'!$B$24*D13)/D13 -> 0.47 | I13: =IF(D13<'Input Cost'!F31,'Input Cost'!D31,((('Input Cost'!$B$25*(D13-'Input Cost'!F31)+'Input Cost'!$D$25)/D13)))*(1-'Input Cost'!$H$25/100) -> 0.54 | K13: 0.4 | L13: =Constraints!$C$3*K13 -> 48 | M13: =('Input Cost'!$D$6/Constraints!$B$4+'Input Cost'!$B$21*L13)/L13 -> 0.17 | N13: =('Input Cost'!$D$7/Constraints!$C$4+'Input Cost'!$B$22*L13)/L13 -> 0.37 | O13: =('Input Cost'!$D$8/Constraints!$D$4+'Input Cost'!$B$23*L13)/L13 -> 0.17 | P13: =('Input Cost'!$D$9/Constraints!$E$4+'Input Cost'!$B$24*L13)/L13 -> 0.13 | Q13: =IF(L13<'Input Cost'!F31,'Input Cost'!D31,((('Input Cost'!$B$25*(L13-'Input Cost'!F31)+'Input Cost'!$D$25)/L13)))*(1-'Input Cost'!$H$25/100) -> 0.54
C14: 0.5 | D14: =Constraints!$C$3*C14 -> 60 | E14: =('Input Cost'!$D$6+'Input Cost'!$B$21*D14)/D14 -> 0.31 | F14: =('Input Cost'!$D$7+'Input Cost'!$B$22*D14)/D14 -> 1.10 | G14: =('Input Cost'!$D$8+'Input Cost'!$B$23*D14)/D14 -> 0.67 | H14: =('Input Cost'!$D$9+'Input Cost'!$B$24*D14)/D14 -> 0.38 | I14: =IF(D14<'Input Cost'!F32,'Input Cost'!D32,((('Input Cost'!$B$25*(D14-'Input Cost'!F32)+'Input Cost'!$D$25)/D14)))*(1-'Input Cost'!$H$25/100) -> 0.53 | K14: 0.5 | L14: =Constraints!$C$3*K14 -> 60 | M14: =('Input Cost'!$D$6/Constraints!$B$4+'Input Cost'!$B$21*L14)/L14 -> 0.16 | N14: =('Input Cost'!$D$7/Constraints!$C$4+'Input Cost'!$B$22*L14)/L14 -> 0.32 | O14: =('Input Cost'!$D$8/Constraints!$D$4+'Input Cost'!$B$23*L14)/L14 -> 0.13 | P14: =('Input Cost'!$D$9/Constraints!$E$4+'Input Cost'!$B$24*L14)/L14 -> 0.12 | Q14: =IF(L14<'Input Cost'!F32,'Input Cost'!D32,((('Input Cost'!$B$25*(L14-'Input Cost'!F32)+'Input Cost'!$D$25)/L14)))*(1-'Input Cost'!$H$25/100) -> 0.53
C15: 0.6 | D15: =Constraints!$C$3*C15 -> 72 | E15: =('Input Cost'!$D$6+'Input Cost'!$B$21*D15)/D15 -> 0.28 | F15: =('Input Cost'!$D$7+'Input Cost'!$B$22*D15)/D15 -> 0.94 | G15: =('Input Cost'!$D$8+'Input Cost'!$B$23*D15)/D15 -> 0.56 | H15: =('Input Cost'!$D$9+'Input Cost'!$B$24*D15)/D15 -> 0.33 | I15: =IF(D15<'Input Cost'!F33,'Input Cost'!D33,((('Input Cost'!$B$25*(D15-'Input Cost'!F33)+'Input Cost'!$D$25)/D15)))*(1-'Input Cost'!$H$25/100) -> 0.53 | K15: 0.6 | L15: =Constraints!$C$3*K15 -> 72 | M15: =('Input Cost'!$D$6/Constraints!$B$4+'Input Cost'!$B$21*L15)/L15 -> 0.15 | N15: =('Input Cost'!$D$7/Constraints!$C$4+'Input Cost'!$B$22*L15)/L15 -> 0.28 | O15: =('Input Cost'!$D$8/Constraints!$D$4+'Input Cost'!$B$23*L15)/L15 -> 0.11 | P15: =('Input Cost'!$D$9/Constraints!$E$4+'Input Cost'!$B$24*L15)/L15 -> 0.11 | Q15: =IF(L15<'Input Cost'!F33,'Input Cost'!D33,((('Input Cost'!$B$25*(L15-'Input Cost'!F33)+'Input Cost'!$D$25)/L15)))*(1-'Input Cost'!$H$25/100) -> 0.53
C16: 0.7 | D16: =Constraints!$C$3*C16 -> 84 | E16: =('Input Cost'!$D$6+'Input Cost'!$B$21*D16)/D16 -> 0.26 | F16: =('Input Cost'!$D$7+'Input Cost'!$B$22*D16)/D16 -> 0.82 | G16: =('Input Cost'!$D$8+'Input Cost'!$B$23*D16)/D16 -> 0.48 | H16: =('Input Cost'!$D$9+'Input Cost'!$B$24*D16)/D16 -> 0.29 | I16: =IF(D16<'Input Cost'!F34,'Input Cost'!D34,((('Input Cost'!$B$25*(D16-'Input Cost'!F34)+'Input Cost'!$D$25)/D16)))*(1-'Input Cost'!$H$25/100) -> 0.53 | K16: 0.7 | L16: =Constraints!$C$3*K16 -> 84 | M16: =('Input Cost'!$D$6/Constraints!$B$4+'Input Cost'!$B$21*L16)/L16 -> 0.15 | N16: =('Input Cost'!$D$7/Constraints!$C$4+'Input Cost'!$B$22*L16)/L16 -> 0.26 | O16: =('Input Cost'!$D$8/Constraints!$D$4+'Input Cost'!$B$23*L16)/L16 -> 0.10 | P16: =('Input Cost'!$D$9/Constraints!$E$4+'Input Cost'!$B$24*L16)/L16 -> 0.10 | Q16: =IF(L16<'Input Cost'!F34,'Input Cost'!D34,((('Input Cost'!$B$25*(L16-'Input Cost'!F34)+'Input Cost'!$D$25)/L16)))*(1-'Input Cost'!$H$25/100) -> 0.53
C17: 0.8 | D17: =Constraints!$C$3*C17 -> 96 | E17: =('Input Cost'!$D$6+'Input Cost'!$B$21*D17)/D17 -> 0.24 | F17: =('Input Cost'!$D$7+'Input Cost'!$B$22*D17)/D17 -> 0.73 | G17: =('Input Cost'!$D$8+'Input Cost'!$B$23*D17)/D17 -> 0.42 | H17: =('Input Cost'!$D$9+'Input Cost'!$B$24*D17)/D17 -> 0.26 | I17: =IF(D17<'Input Cost'!F35,'Input Cost'!D35,((('Input Cost'!$B$25*(D17-'Input Cost'!F35)+'Input Cost'!$D$25)/D17)))*(1-'Input Cost'!$H$25/100) -> 0.52 | K17: 0.8 | L17: =Constraints!$C$3*K17 -> 96 | M17: =('Input Cost'!$D$6/Constraints!$B$4+'Input Cost'!$B$21*L17)/L17 -> 0.14 | N17: =('Input Cost'!$D$7/Constraints!$C$4+'Input Cost'!$B$22*L17)/L17 -> 0.24 | O17: =('Input Cost'!$D$8/Constraints!$D$4+'Input Cost'!$B$23*L17)/L17 -> 0.08 | P17: =('Input Cost'!$D$9/Constraints!$E$4+'Input Cost'!$B$24*L17)/L17 -> 0.09 | Q17: =IF(L17<'Input Cost'!F35,'Input Cost'!D35,((('Input Cost'!$B$25*(L17-'Input Cost'!F35)+'Input Cost'!$D$25)/L17)))*(1-'Input Cost'!$H$25/100) -> 0.52
C18: 0.9 | D18: =Constraints!$C$3*C18 -> 108 | E18: =('Input Cost'!$D$6+'Input Cost'!$B$21*D18)/D18 -> 0.23 | F18: =('Input Cost'!$D$7+'Input Cost'!$B$22*D18)/D18 -> 0.67 | G18: =('Input Cost'!$D$8+'Input Cost'!$B$23*D18)/D18 -> 0.37 | H18: =('Input Cost'!$D$9+'Input Cost'!$B$24*D18)/D18 -> 0.24 | I18: =IF(D18<'Input Cost'!F36,'Input Cost'!D36,((('Input Cost'!$B$25*(D18-'Input Cost'!F36)+'Input Cost'!$D$25)/D18)))*(1-'Input Cost'!$H$25/100) -> 0.52 | K18: 0.9 | L18: =Constraints!$C$3*K18 -> 108 | M18: =('Input Cost'!$D$6/Constraints!$B$4+'Input Cost'!$B$21*L18)/L18 -> 0.14 | N18: =('Input Cost'!$D$7/Constraints!$C$4+'Input Cost'!$B$22*L18)/L18 -> 0.23 | O18: =('Input Cost'!$D$8/Constraints!$D$4+'Input Cost'!$B$23*L18)/L18 -> 0.07 | P18: =('Input Cost'!$D$9/Constraints!$E$4+'Input Cost'!$B$24*L18)/L18 -> 0.09 | Q18: =IF(L18<'Input Cost'!F36,'Input Cost'!D36,((('Input Cost'!$B$25*(L18-'Input Cost'!F36)+'Input Cost'!$D$25)/L18)))*(1-'Input Cost'!$H$25/100) -> 0.52
C19: 1 | D19: =Constraints!$C$3*C19 -> 120 | E19: =('Input Cost'!$D$6+'Input Cost'!$B$21*D19)/D19 -> 0.22 | F19: =('Input Cost'!$D$7+'Input Cost'!$B$22*D19)/D19 -> 0.61 | G19: =('Input Cost'!$D$8+'Input Cost'!$B$23*D19)/D19 -> 0.33 | H19: =('Input Cost'!$D$9+'Input Cost'!$B$24*D19)/D19 -> 0.22 | I19: =IF(D19<'Input Cost'!F37,'Input Cost'!D37,((('Input Cost'!$B$25*(D19-'Input Cost'!F37)+'Input Cost'!$D$25)/D19)))*(1-'Input Cost'!$H$25/100) -> 0.52 | K19: 1 | L19: =Constraints!$C$3*K19 -> 120 | M19: =('Input Cost'!$D$6/Constraints!$B$4+'Input Cost'!$B$21*L19)/L19 -> 0.14 | N19: =('Input Cost'!$D$7/Constraints!$C$4+'Input Cost'!$B$22*L19)/L19 -> 0.22 | O19: =('Input Cost'!$D$8/Constraints!$D$4+'Input Cost'!$B$23*L19)/L19 -> 0.07 | P19: =('Input Cost'!$D$9/Constraints!$E$4+'Input Cost'!$B$24*L19)/L19 -> 0.08 | Q19: =IF(L19<'Input Cost'!F37,'Input Cost'!D37,((('Input Cost'!$B$25*(L19-'Input Cost'!F37)+'Input Cost'!$D$25)/L19)))*(1-'Input Cost'!$H$25/100) -> 0.52
C21: Cost per Mission
B25: Transportation Mode | C25: Fleet | D25: short Missions | E25: middle Missions | F25: long Missions | G25: Missions | H25: Distance
A26: Operational Mix | B26: ='Input Cost'!A21 -> Self-Drive | C26: =Solver!B18 -> 11 | D26: =Solver!B24 -> 1 | E26: =Solver!C24 -> 10 | F26: =Solver!D24 -> 5 | G26: =SUM(D26:F26) -> 16 | H26: =Solver!E24 -> 1198.00
B27: ='Input Cost'!A22 -> Core-Drive | C27: =Solver!B19 -> 0 | D27: =Solver!B25 -> 0 | E27: =Solver!C25 -> 0 | F27: =Solver!D25 -> 0 | G27: =SUM(D27:F27) -> 0 | H27: =Solver!E25 -> 0.00
B28: ='Input Cost'!A23 -> Outsourced (external driver) | C28: =Solver!B20 -> 0 | D28: =Solver!B26 -> 0 | E28: =Solver!C26 -> 0 | F28: =Solver!D26 -> 0 | G28: =SUM(D28:F28) -> 0 | H28: =Solver!E26 -> 0.00
B29: ='Input Cost'!A24 -> Vehicle rental (own driver) | C29: =Solver!B21 -> 5 | D29: =Solver!B27 -> 17 | E29: =Solver!C27 -> 3 | F29: =Solver!D27 -> 1 | G29: =SUM(D29:F29) -> 21 | H29: =Solver!E27 -> 595.00
A30: Trips | B30: ='Input Cost'!A25&" "&A30 -> Taxi Trips | C30: =SUM(D30:F30) -> 1 | D30: =Solver!B28 -> 1 | E30: =Solver!C28 -> 0 | F30: =Solver!D28 -> 0 | G30: =SUM(D30:F30) -> 1 | H30: =Solver!E28 -> 8.00

Sheet Cost Savings Opportunity
A2: Time period for savings plots | B2: 250 | C2: days
A4: Time period | B4: 25 | C4: days
A5: Type | B5: Status quo | E5: Status quo (per day) | F5: Status quo (per plot period) | G5: Min. to meet demand (per day) | H5: Min. to meet demand (per plot period) | I5: Savings potential (per plot period) | J5: Savings [%]
A6: Vehicles (Buy - Resale Value) | B6: =12869.3333333333 -> 12869.33 | C6: =CONCATENATE('Input Cost'!$B$3,"/period") -> Euro/period | E6: =B6/$B$4 -> 514.77 | F6: =E6*'Cost Savings Opportunity'!$B$2 -> 128693.33 | G6: =$G$18*'Input Cost'!D11 -> 87.92 | H6: =G6*'Cost Savings Opportunity'!B2 -> 21979.83 | I6: =F6-H6 -> 106713.50 | J6: =IF(F6<>0,(F6-H6)/F6*100,0) -> 82.92
A7: Technology | B7: 4549.14 | C7: =CONCATENATE('Input Cost'!$B$3,"/period") -> Euro/period | E7: =B7/$B$4 -> 181.97 | F7: =E7*'Cost Savings Opportunity'!$B$2 -> 45491.37 | G7: =$G$18*'Input Cost'!D12 -> 5.97 | H7: =G7*'Cost Savings Opportunity'!B2 -> 1493.13 | I7: =F7-H7 -> 43998.23 | J7: =IF(F7<>0,(F7-H7)/F7*100,0) -> 96.72
A8: Salary (core drive) | B8: 15695.00 | C8: =CONCATENATE('Input Cost'!$B$3,"/period") -> Euro/period | E8: =B8/$B$4 -> 627.80 | F8: =E8*'Cost Savings Opportunity'!$B$2 -> 156950.00 | G8: =$G$17*'Input Cost'!D13 -> 0.00 | H8: =G8*'Cost Savings Opportunity'!$B$2 -> 0.00 | I8: =F8-H8 -> 156950.00 | J8: =IF(F8<>0,(F8-H8)/F8*100,0) -> 100.00
A9: Insurance | B9: 3358.68 | C9: =CONCATENATE('Input Cost'!$B$3,"/period") -> Euro/period | E9: =B9/$B$4 -> 134.35 | F9: =E9*'Cost Savings Opportunity'!$B$2 -> 33586.78 | G9: =$G$18*'Input Cost'!D14 -> 29.92 | H9: =G9*'Cost Savings Opportunity'!$B$2 -> 7480.00 | I9: =F9-H9 -> 26106.78 | J9: =IF(F9<>0,(F9-H9)/F9*100,0) -> 77.73
A10: Other | B10: 331.69 | C10: =CONCATENATE('Input Cost'!$B$3,"/period") -> Euro/period | E10: =B10/$B$4 -> 13.27 | F10: =E10*'Cost Savings Opportunity'!$B$2 -> 3316.93 | G10: =$G$18*'Input Cost'!D15 -> 2.78 | H10: =G10*'Cost Savings Opportunity'!$B$2 -> 694.98 | I10: =F10-H10 -> 2621.95 | J10: 79.05
J11: 0.00
A12: Cost for Outsourcing | B12: 0.00 | C12: =CONCATENATE('Input Cost'!$B$3,"/period") -> Euro/period | E12: =B12/$B$4 -> 0.00 | F12: =E12*'Cost Savings Opportunity'!$B$2 -> 0.00 | G12: =Solver!B8+Solver!B13 -> 0.00 | H12: =G12*'Cost Savings Opportunity'!$B$2 -> 0.00 | I12: =F12-H12 -> 0.00 | J12: 0.00
A13: Cost for Type 5 | B13: 0.00 | C13: =CONCATENATE('Input Cost'!$B$3,"/period") -> Euro/period | E13: =B13/$B$4 -> 0.00 | F13: =E13*'Cost Savings Opportunity'!$B$2 -> 0.00 | G13: =Solver!B9+Solver!B14 -> 129.75 | H13: =G13*'Cost Savings Opportunity'!$B$2 -> 32437.50 | I13: =F13-H13 -> -32437.50 | J13: 0.00
A14: Cost for Taxi Services | B14: 11108.15 | C14: =CONCATENATE('Input Cost'!$B$3,"/period") -> Euro/period | E14: =B14/$B$4 -> 444.33 | F14: =E14*'Cost Savings Opportunity'!$B$2 -> 111081.48 | G14: =Solver!B15 -> 4.59 | H14: =G14*'Cost Savings Opportunity'!$B$2 -> 1147.50 | I14: =F14-H14 -> 109933.98 | J14: 98.97
A15: Cost for Fuel + M&R | B15: =1418.6825+1319.31 -> 2737.99 | C15: =CONCATENATE('Input Cost'!$B$3,"/period") -> Euro/period | E15: =B15/$B$4 -> 109.52 | F15: =E15*'Cost Savings Opportunity'!$B$2 -> 27379.93 | G15: =Solver!B11+Solver!B12 -> 143.76 | H15: =G15*'Cost Savings Opportunity'!$B$2 -> 35940.00 | I15: =F15-H15 -> -8560.08 | J15: -31.26
J16: 0
A17: No drivers | B17: 20 | E17: =B17 -> 20 | F17: =E17 -> 20 | G17: =Solver!B19 -> 0 | H17: =G17 -> 0 | I17: =F17-H17 -> 20 | J17: 100
A18: No vehicles | B18: 57 | E18: =B18 -> 57 | F18: =E18 -> 57 | G18: =Solver!B19+Solver!B18 -> 11 | H18: =G18 -> 11 | I18: =F18-H18 -> 46 | J18: 80.70175439
A25: Type | B25: =F5 -> Status quo (per plot period) | C25: =H5 -> Min. to meet demand (per plot period)
A26: Vehicles (Buy - Resale Value) | B26: =F6 -> 128693.33 | C26: =H6 -> 21979.83
A27: Technology | B27: =F7 -> 45491.37 | C27: =H7 -> 1493.13
A28: Salary (core drive) | B28: 156950.00 | C28: 0.00
A29: Insurance | B29: 33586.78 | C29: 7480.00
A30: Other | B30: 3316.93 | C30: 694.98
A32: ='Input Cost'!A23 -> Outsourced (external driver) | B32: 0.00 | C32: 0.00
A33: ='Input Cost'!A24 -> Vehicle rental (own driver) | B33: 0.00 | C33: 32437.50
A34: ='Input Cost'!A25 -> Taxi | B34: 111081.48 | C34: 1147.50
A35: Fuel + M&R | B35: 27379.93 | C35: 35940.00

Sheet Triangle Analysis
C2: Triangle Analysis
C4: Distance | D4: variable cost | E4: Calculation of number of vehicles | I4: number of vehicles | J4: number of drivers | K4: fix cost | L4: total cost (per day) | M4: total cost (per plot period)
B5: Extremes | E5: hours | F5: distance | G5: concurrency | H5: min no. Vehicles
A6: 100% | B6: ='Input Cost'!A21 -> Self-Drive | C6: =SUMPRODUCT(Constraints!B28:D28,DistanceFactorSelfDrive,DistancesTripTypes) -> 1614.00 | D6: =C6*'Input Cost'!B21 -> 193.68 | E6: =ROUNDUP((SUMPRODUCT(Constraints!B28:D28,Constraints!B12:D12))/Constraints!B6,0) -> 20 | F6: =ROUNDUP((C6/Constraints!B3),0) -> 14 | G6: =Solver!$D$34 -> 13 | H6: =Solver!$D$35 -> 0 | I6: =MAX(E6:H6) -> 20 | J6: 0 | K6: =I6*'Input Cost'!D6 -> 230.17 | L6: =D6+K6 -> 423.85 | M6: =L6*'Cost Savings Opportunity'!$B$2 -> 105961.72
A7: 100% | B7: ='Input Cost'!A22 -> Core-Drive | C7: =SUMPRODUCT(Constraints!B28:D28,DistanceFactorCoreDrive,DistancesTripTypes) -> 1987.00 | D7: =C7*'Input Cost'!B22 -> 238.44 | E7: =ROUNDUP((SUMPRODUCT(Constraints!B28:D28,Constraints!B13:D13))/Constraints!C6,0) -> 13 | F7: =ROUNDUP((C7/Constraints!C3),0) -> 17 | G7: =Solver!$D$34 -> 13 | H7: =Solver!$D$35 -> 0 | I7: =MAX(E7:H7) -> 17 | J7: =I7 -> 17 | K7: =I7*'Input Cost'!D7 -> 1003.48 | L7: =D7+K7 -> 1241.92 | M7: =L7*'Cost Savings Opportunity'!$B$2 -> 310480.46
A8: 100% | B8: ='Input Cost'!A23 -> Outsourced (external driver) | C8: =SUMPRODUCT(Constraints!B28:D28,DistanceFactorOutsourced,DistancesTripTypes) -> 1987.00 | D8: =C8*'Input Cost'!B23 -> 0 | E8: =ROUNDUP((SUMPRODUCT(Constraints!B28:D28,Constraints!B14:D14))/Constraints!D6,0) -> 13 | F8: =ROUNDUP((C8/Constraints!D3),0) -> 17 | G8: =Solver!$D$34 -> 13 | H8: =Solver!$D$35 -> 0 | I8: =MAX(E8:H8) -> 17 | J8: 0 | K8: =I8*'Input Cost'!D8 -> 680.00 | L8: =D8+K8 -> 680.00 | M8: =L8*'Cost Savings Opportunity'!$B$2 -> 170000.00
A9: 100% | B9: ='Input Cost'!A24 -> Vehicle rental (own driver) | C9: =SUMPRODUCT(Constraints!B28:D28,DistanceFactorType5,DistancesTripTypes) -> 1987.00 | D9: =C9*'Input Cost'!B24 -> 99.35 | E9: =ROUNDUP((SUMPRODUCT(Constraints!B28:D28,Constraints!B15:D15))/Constraints!E6,0) -> 13 | F9: =ROUNDUP((C9/Constraints!E3),0) -> 17 | G9: =Solver!$D$34 -> 13 | H9: =Solver!$D$35 -> 0 | I9: =MAX(E9:H9) -> 17 | J9: 0 | K9: =I9*'Input Cost'!D9 -> 340.00 | L9: =D9+K9 -> 439.35 | M9: =L9*'Cost Savings Opportunity'!$B$2 -> 109837.50
A10: 100% | B10: ='Input Cost'!A25 -> Taxi | C10: =SUMPRODUCT(Constraints!B28:D28,DistanceFactorTaxi,DistancesTripTypes) -> 1614.00 | D10: =((C10-'Input Cost'!F25*'Input Demand'!D5)*'Input Cost'!B25+'Input Cost'!D25*'Input Demand'!D5)*(1-'Input Cost'!H25/100) -> 842.52 | E10: - | F10: - | G10: - | H10: - | I10: - | J10: - | K10: 0.00 | L10: =D10+K10 -> 842.52 | M10: =L10*'Cost Savings Opportunity'!$B$2 -> 210630.00
B11: Status quo | I11: ='Cost Savings Opportunity'!B18 -> 57 | J11: ='Cost Savings Opportunity'!B17 -> 20 | L11: =SUM('Cost Savings Opportunity'!B6:B15)/'Cost Savings Opportunity'!B4 -> 2026.00 | M11: =L11*'Cost Savings Opportunity'!$B$2 -> 506499.80
B12: Optimal Solution | C12: =SUM(Solver!E24:E28) -> 1801.00 | D12: =Solver!B10 -> 178.1 | I12: =Solver!B18+Solver!B19 -> 11 | J12: =Solver!B19 -> 0 | K12: =Solver!B5 -> 226.59 | L12: =D12+K12 -> 404.69 | M12: =L12*'Cost Savings Opportunity'!$B$2 -> 101172.95
